Cogmind - Beta 16.1 @@@ ROGUE MODE // 2026.02.24 @ 22:45:34 Player: Artackni Result: Destroyed by 8R-AWN with 8R-AWN's Boregun Performance ------------- Evolutions (1) 500 Regions Visited (5) 1000 Robots Destroyed (35) 175 Value Destroyed (658) 658 Prototype IDs (23) 460 Alien Tech Used (0) 0 Bonus (300) 300 TOTAL SCORE: 3093 Bonus ------- Aligned with FarCom 300 Cogmind --------- Core Integrity 0/400 Matter 7/300 Energy 100/100 System Corruption 84% Temperature Cool (0) Movement Core (50) Location -9/Exiles Parts ------- > --- POWER (1) -------- (None) > --- PROPULSION (3) --- (None) > --- UTILITY (2) ------ (None) > --- WEAPON (3) ------- (None) > --- INVENTORY (5) ---- Humpback Seismic Detector Peak State ------------ > --- POWER ------------ Improved Ion Engine > --- PROPULSION ------- Light Treads Light Treads Light Treads > --- UTILITY ---------- (None) > --- WEAPON ----------- Latent Energy Streamer Shotgun Shotgun > --- INVENTORY -------- Humpback Seismic Detector Heavy Assault Rifle Shotgun [Rating: 19] Favorites ----------- Power Ion Engine Engine Ion Engine Propulsion Light Treads Treads Light Treads Wheel Wheel Utility Large Storage Unit Device Seismic Detector Storage Large Storage Unit Weapon Shotgun Energy Gun Medium Laser Energy Cannon Latent Energy Streamer Ballistic Gun Shotgun Build | -11 -10 -10 -9 -9 -9 ------- Run | Yrd Mat Min Mat Min Exi Slots Evolved 2 | . . . 2 . . Power . | . . . . . . Propulsion 1 | . . . 1 . . Utility . | . . . . . . Weapon 1 | . . . 1 . . Parts Attached 47 | 7 10 2 15 . 13 Power 6 | 1 1 . 2 . 2 Engine 6 | 1 1 . 2 . 2 Core . | . . . . . . Reactor . | . . . . . . Propulsion 14 | 2 2 2 3 . 5 Treads 9 | . . 1 3 . 5 Leg . | . . . . . . Wheel 5 | 2 2 1 . . . Hover . | . . . . . . Flight . | . . . . . . Utility 11 | 2 4 . 3 . 2 Device 6 | 1 3 . 2 . . Storage 5 | 1 1 . 1 . 2 Processor . | . . . . . . Hackware . | . . . . . . Protection . | . . . . . . Artifact . | . . . . . . Weapon 16 | 2 3 . 7 . 4 Energy Gun 5 | 2 2 . 1 . . Energy Cannon 1 | . . . . . 1 Ballistic Gun 10 | . 1 . 6 . 3 Ballistic Cannon . | . . . . . . Launcher . | . . . . . . Special Weapon . | . . . . . . Impact Weapon . | . . . . . . Slashing Weapon . | . . . . . . Piercing Weapon . | . . . . . . Special Melee Weapon . | . . . . . . Unidentified Prototypes . | . . . . . . Corrupted Parts 8 | . . . . . 8 System Corruption 80 | . . . . . 80 Parts Lost 21 | . 3 1 1 . 16 Power 2 | . . . 1 . 1 Propulsion 8 | . . 1 . . 7 Utility 2 | . 1 . . . 1 Weapon 9 | . 2 . . . 7 Highest Loss Streak 14 | . 3 1 1 . 14 To Critical Strikes 11 | . . . . . 11 Average Backups 10 | 4 8 11 14 15 8 Power 2 | . 1 2 3 2 2 Propulsion 3 | 2 4 3 4 6 1 Utility 1 | . 1 2 1 1 . Weapon 3 | . . 3 5 6 3 Tool/Special . | . . . . . . Unused Backups 12 | . 2 . 5 . 5 Power 3 | . . . . . 3 Propulsion 3 | . 1 . 1 . 1 Utility 2 | . 1 . . . 1 Weapon 4 | . . . 4 . . Tool/Special . | . . . . . . Average Slot Usage (%) 96 | . 99 100 98 100 89 Engine 11 | . 13 14 11 11 9 Treads 16 | . . 11 22 22 29 Wheel 13 | . 27 16 11 11 . Device 11 | . 13 14 11 11 7 Storage 11 | . 14 14 11 11 9 Energy Gun 15 | . 19 28 20 . . Ballistic Gun 14 | . 7 . 10 33 31 Peak Build Rating 19 | 7 10 8 16 16 19 Average Rating 10 | 5 7 8 11 14 13 On Entrance 8 | . 7 8 8 16 14 Avg Prop Armor Cover (%) 15 | . . 13 16 16 16 Naked Turns 10 | . . . . . 10 Heaviest Build 216 | 15 29 29 35 35 216 Greatest Support 63 | 26 32 32 20 10 63 Greatest Overweight (x) 3 | 1 1 2 3 3 3 Average Overweight (x) . | . . 1 2 3 . Largest Inventory Capacity 35 | 8 15 15 15 15 35 Average Capacity 13 | 7 8 15 15 15 16 Most Carried 15 | 8 10 15 15 15 15 Average Carried 10 | 4 8 12 14 15 8 Final Capacity 15 | 8 15 15 15 15 5 Final Carried 15 | 8 10 15 15 15 3 Class Distribution -------------------- 50% | Mutant 36% | Scavenger-Gunner 7% | Gunner 5% | Hauler-Gunner Dominant Class ---------------- Mutant | -10/Materials Mutant | -10/Mines Scavenger-Gunner | -9/Materials Scavenger-Gunner | -9/Mines Scavenger-Gunner | -9/Exiles Resources | -11 -10 -10 -9 -9 -9 ----------- Run | Yrd Mat Min Mat Min Exi Matter Collected 983 | 258 238 75 203 78 131 Remotely . | . . . . . . Salvage Created 1265 | 28 465 203 436 40 93 Parts 91 | 7 30 20 27 7 . Haulers Intercepted 3 | . 2 . 1 . . Recyclers Shooed 1 | . . . 1 . . Parts Field Recycled . | . . . . . . Retrieved Matter . | . . . . . . Parts Self-Destructed . | . . . . . . Prevented . | . . . . . . Parts Restored . | . . . . . . Kills | -11 -10 -10 -9 -9 -9 ------- Run | Yrd Mat Min Mat Min Exi Combat Hostiles Destroyed 28 | . 7 6 7 3 5 Guns 24 | . 7 6 7 3 1 AOE 4 | . . . . . 4 Classes Destroyed 11 | 1 5 2 2 . 1 Worker 2 | . 1 . 1 . . Builder 1 | . . 1 . . . Tunneler 3 | 2 . 1 . . . Hauler 3 | . 2 . 1 . . Recycler 1 | . . 1 . . . Watcher 2 | . 2 . . . . Swarmer 12 | . 3 6 . 3 . Grunt 6 | . 4 . 2 . . Brawler 1 | . . . 1 . . Sentry 4 | . . . 4 . . Assembled 5 | . . . . . 5 Best Kill Streak 5 | 1 3 3 4 3 5 Combat Bots Only 5 | . 3 3 3 3 5 Max Kills in Single Turn 4 | 1 1 1 1 2 4 Gunslinging 1 | . . . . 1 . Exploded 4 | . . . . . 4 Melee . | . . . . . . Uniques/NPCs Destroyed . | . . . . . . Combat | -11 -10 -10 -9 -9 -9 -------- Run | Yrd Mat Min Mat Min Exi Hostile Shots Fired 250 | . 52 18 60 10 110 Missed 56 | . 12 4 18 3 19 Hits 194 | . 40 14 42 7 91 Melee 3 | . . . . . 3 Projectile 191 | . 40 14 42 7 88 Critical Strikes 43 | . . . 3 . 40 Part Disruptions 1 | . . . . . 1 Damage Taken 3036 | . 530 105 598 52 1751 Core 623 | . 177 29 153 . 264 Absorbed by Shields . | . . . . . . Core Remaining (%) 58 | 100 . 17 . . . Volleys Fired 163 | 12 51 17 30 4 49 Largest 3 | 2 2 2 3 3 3 Hottest 119 | 100 100 90 119 69 69 Shots Fired 363 | 24 98 34 87 12 108 Gun 362 | 24 98 34 87 12 107 Cannon 1 | . . . . . 1 Launcher . | . . . . . . Special . | . . . . . . Kinetic 194 | . 42 . 33 12 107 Thermal 168 | 24 56 34 54 . . Explosive . | . . . . . . Electromagnetic 1 | . . . . . 1 Robot Hit Streak 35 | 5 10 4 35 4 9 Robot Miss Streak 11 | 3 3 2 2 7 11 Penetration Max . | . . . . . . Secondary Targets 3 | . . . 2 1 . Max Gunslinging Chain 1 | . . . 1 1 . Shots Hit Robots 235 | 12 60 19 65 7 72 Core Hits 79 | 3 22 10 21 3 20 Critical Kills . | . . . . . . Critical Parts Destroyed 1 | . . . . . 1 Critical Strikes 8 | 1 4 . . . 3 Burn 5 | 1 4 . . . . Destroy 3 | . . . . . 3 Melee Attacks . | . . . . . . Impact . | . . . . . . Slashing . | . . . . . . Piercing . | . . . . . . Sneak Attacks . | . . . . . . Combat Hostiles . | . . . . . . Follow-up Attacks . | . . . . . . Damage Inflicted 3573 | 153 781 233 830 76 1500 Guns 3096 | 153 781 233 830 76 1023 Cannons 7 | . . . . . 7 Explosions 470 | . . . . . 470 Melee . | . . . . . . Ramming . | . . . . . . Kinetic 1764 | . 359 . 306 76 1023 Thermal 1332 | 153 422 233 524 . . Explosive . | . . . . . . Electromagnetic 477 | . . . . . 477 Impact . | . . . . . . Slashing . | . . . . . . Piercing . | . . . . . . Highest Corruption 84 | . . . . . 84 Average Corruption 56 | . . . . . 56 Corruption Purged . | . . . . . . Corruption Blocked . | . . . . . . Effects 35 | . . . . . 35 Message Errors 2 | . . . . . 2 Matter Fused 2 | . . . . . 2 Heat Flow Errors 2 | . . . . . 2 Energy Discharges 3 | . . . . . 3 Data Loss (minor) 2 | . . . . . 2 Data Loss (major) 1 | . . . . . 1 Misfires 1 | . . . . . 1 Misdirections 5 | . . . . . 5 Weapon Failures 17 | . . . . . 17 Overload Shots . | . . . . . . Overflow Damage 64 | . . . . . 64 Projectiles . | . . . . . . Explosions 64 | . . . . . 64 Melee . | . . . . . . Knockbacks . | . . . . . . Impact . | . . . . . . Kinetic . | . . . . . . Secondary . | . . . . . . Self-Inflicted Damage 105 | . . . . . 105 Shots 1 | . . . . . 1 Rammed . | . . . . . . Targets Rammed . | . . . . . . Kicked . | . . . . . . Crushed . | . . . . . . Highest Temperature 289 | 289 158 . 242 . 202 Average Temperature 67 | 145 35 . 83 . 48 Received Heat Transfer 491 | . 222 . 249 . 20 Effects 1 | 1 . . . . . Energy Bleed 1 | 1 . . . . . Siege Activations . | . . . . . . Martial Activations . | . . . . . . Shielding Activations . | . . . . . . Robots Disrupted . | . . . . . . Combat Hostiles . | . . . . . . Robots Corrupted . | . . . . . . Combat Hostiles . | . . . . . . Parts Fried . | . . . . . . Impact Corruptions . | . . . . . . Robots Melted . | . . . . . . Combat Hostiles . | . . . . . . Parts Melted 2 | . 1 . 1 . . Heat Transferred 3970 | 518 1542 596 1314 . . Parts Sabotaged . | . . . . . . Parts Stolen . | . . . . . . Parts Stripped . | . . . . . . Power Chain Reactions . | . . . . . . Latent Energy Used 200 | . . . . . 200 LE Corruption 3 | . . . . . 3 Alert | -11 -10 -10 -9 -9 -9 ------- Run | Yrd Mat Min Mat Min Exi Maximum Alert Level . | . . . . . . Low Security (%) 100 | 100 100 100 100 100 . Level 1 . | . . . . . . Level 2 . | . . . . . . Level 3 . | . . . . . . Level 4 . | . . . . . . Level 5 . | . . . . . . High Security . | . . . . . . Max Security . | . . . . . . Peak Influence 146 | 5 89 105 146 114 . Initial 54 | . . 1 . 54 . Average 32 | . 25 43 33 83 . Influence Increases 889 | 10 287 170 352 70 . Destroy 0b10 Robot/C 460 | . 140 120 140 60 . Destroy 0b10 Robot/NC 65 | 10 30 15 10 . . Destroy Leader 130 | . 38 20 62 10 . Trap Triggered on 0b10 20 | . . . 20 . . Successful Hack 62 | . 32 . 30 . . Disable Machine 30 | . . . 30 . . Destroy Structure 2 | . 2 . . . . Partial Spotted 15 | . 15 . . . . Lose Combat Pursuer 105 | . 30 15 60 . . Influence Decreases 889 | 10 281 176 212 116 94 Entered New Map 185 | . . 5 . 86 94 Time Decay 654 | 10 251 161 202 30 . Lost Part 50 | . 30 10 10 . . Squads Dispatched 2 | . 1 . 1 . . Investigation . | . . . . . . Extermination . | . . . . . . Reinforcement 2 | . 1 . 1 . . Assault . | . . . . . . Garrison . | . . . . . . Intercept . | . . . . . . Searches Triggered . | . . . . . . Construction Impeded . | . . . . . . Haulers Reinforced . | . . . . . . Active Scanning Responses . | . . . . . . Cargo Convoy Interrupts . | . . . . . . Stealth | -11 -10 -10 -9 -9 -9 --------- Run | Yrd Mat Min Mat Min Exi Distress Signals 5 | . 3 1 1 . . Communications Jammed . | . . . . . . Distress Signals . | . . . . . . Times Spotted 51 | . 15 7 20 3 6 Peak Tracking Total 9 | . 4 3 7 3 9 Tactical Retreats 5 | . 2 1 2 . . Traps | -11 -10 -10 -9 -9 -9 ------- Run | Yrd Mat Min Mat Min Exi Traps Triggered 4 | . 4 . . . . Indirectly . | . . . . . . Trap Hack Attempts . | . . . . . . Triggered . | . . . . . . Disarmed . | . . . . . . Reprogrammed . | . . . . . . Reused 2 | . . . 2 . . Traps Extracted . | . . . . . . Installed 2 | . . . 2 . . Triggered 2 | . . . 2 . . Most Traps Carried 2 | . . 2 2 . . Machines | -11 -10 -10 -9 -9 -9 ---------- Run | Yrd Mat Min Mat Min Exi Machines Disabled 7 | . . . 2 . 5 Max in Single Turn 2 | . . . 1 . 2 Machines Repaired . | . . . . . . Machines Dismantled . | . . . . . . Machines Sabotaged . | . . . . . . Overloaded Fab Kills . | . . . . . . Hacking | -11 -10 -10 -9 -9 -9 --------- Run | Yrd Mat Min Mat Min Exi Machines Accessed 10 | . 6 . 3 . 1 Terminals 8 | . 6 . 2 . . Fabricators . | . . . . . . Repair Stations . | . . . . . . Recycling Units . | . . . . . . Scanalyzers 1 | . . . 1 . . Garrison Access . | . . . . . . Total Hacks 18 | . 13 . 4 . 1 Successful 10 | . 6 . 3 . 1 Failed 8 | . 7 . 1 . . Catastrophic 1 | . 1 . . . . Database Lockouts . | . . . . . . Manual 17 | . 13 . 3 . 1 Terminals 16 | . 13 . 3 . . Fabricators . | . . . . . . Repair Stations . | . . . . . . Recycling Units . | . . . . . . Scanalyzers 1 | . . . 1 . . Garrison Access . | . . . . . . Terminal Hacks 1 | . . . . . 1 Proto ID Catalog 1 | . . . . . 1 Fabricator Hacks . | . . . . . . Repair Station Hacks . | . . . . . . Recycling Unit Hacks . | . . . . . . Scanalyzer 1 | . . . 1 . . Retrieve Study 1 | . . . 1 . . Garrison Access Hacks . | . . . . . . Unauthorized Hacks 8 | . 6 . 2 . . Terminals 8 | . 6 . 2 . . Operators 1 | . 1 . . . . Skim 7 | . 5 . 2 . . Fabricators . | . . . . . . Repair Stations . | . . . . . . Recycling Units . | . . . . . . Scanalyzers . | . . . . . . Garrison Access . | . . . . . . Data Cores Recovered . | . . . . . . Used . | . . . . . . Hacking Detections 8 | . 6 . 2 . . Full Trace Events 1 | . 1 . . . . Feedback Events . | . . . . . . Feedback Blocked . | . . . . . . Robot Schematics Acquired . | . . . . . . Robots Built . | . . . . . . Authchips . | . . . . . . Time . | . . . . . . Total Robot Build Rating . | . . . . . . Part Schematics Acquired . | . . . . . . Parts Built . | . . . . . . Authchips . | . . . . . . Time . | . . . . . . Total Part Build Rating . | . . . . . . Part Studies Acquired 1 | . . . 1 . . Parts Repaired . | . . . . . . Time . | . . . . . . Parts Recycled . | . . . . . . Recycled Matter . | . . . . . . Retrieved Matter . | . . . . . . Retrieved Components . | . . . . . . Parts Scanalyzed . | . . . . . . Part Schematics Acquired . | . . . . . . Parts Damaged . | . . . . . . Bothacking | -11 -10 -10 -9 -9 -9 ------------ Run | Yrd Mat Min Mat Min Exi Used RIF Installer . | . . . . . . Robots Hacked . | . . . . . . Non-combat . | . . . . . . Combat . | . . . . . . Robot Hacks Applied . | . . . . . . Relay Couplers Released . | . . . . . . Fabnet Peak Effective % . | . . . . . . Robots Rewired . | . . . . . . Allies Hacked . | . . . . . . Hacks Repelled . | . . . . . . Allies | -11 -10 -10 -9 -9 -9 -------- Run | Yrd Mat Min Mat Min Exi Total Allies . | . . . . . . Largest Group . | . . . . . . Highest-Rated Group . | . . . . . . Highest-Rated Ally . | . . . . . . Total Orders . | . . . . . . Ally Attacks . | . . . . . . Total Damage . | . . . . . . Kills . | . . . . . . Allies Corrupted . | . . . . . . Allies Melted . | . . . . . . Intel | -11 -10 -10 -9 -9 -9 ------- Run | Yrd Mat Min Mat Min Exi Active Infowar (turns) 1915 | 65 739 . 471 57 583 Seismic 1915 | 65 739 . 471 57 583 Robot Analysis Total . | . . . . . . Derelict Logs Recovered 1 | . . 1 . . . Drone Launches . | . . . . . . Drone Recoveries . | . . . . . . Exploration | -11 -10 -10 -9 -9 -9 ------------- Run | Yrd Mat Min Mat Min Exi Turns Passed 3419 | 112 957 429 943 67 911 Spaces Moved 2124 | 65 786 336 434 46 457 Core 29 | 7 . . . . 22 Treads 593 | . . 2 177 . 414 Legs . | . . . . . . Wheels 1502 | 58 786 334 257 46 21 Hover . | . . . . . . Flight . | . . . . . . Fastest Speed 50 | 50 90 100 110 115 50 Average Speed 125 | 89 93 110 168 115 155 Slowest Speed 400 | 100 115 240 240 115 400 Overloaded Moves . | . . . . . . Propulsion Burnouts . | . . . . . . Robots Hopped . | . . . . . . Potential Cave-ins . | . . . . . . Cave-ins Triggered . | . . . . . . Exploration Rate (%) 49 | 3 94 70 49 10 70 Regions Visited 5 Branch Regions 3 Pre-discovered Areas 1 | . 1 . . . . Known Exits Taken 2 | . 1 1 . . . Unknown Exits Taken 3 | 1 . . 1 1 . Scrap Searched 1 | . . 1 . . . Spaces Dug . | . . . . . . Terrain Destroyed 19 | . . . . . 19 Melee . | . . . . . . Projectile . | . . . . . . AOE 19 | . . . . . 19 Terrain Rammed . | . . . . . . Walls Destroyed . | . . . . . . Machines Disabled . | . . . . . . Actions | -11 -10 -10 -9 -9 -9 --------- Run | Yrd Mat Min Mat Min Exi Total 2558 | 91 905 359 586 50 567 Wait 116 | . 38 . 75 . 3 Move 2119 | 64 785 335 433 45 457 Hop . | . . . . . . Pick Up 45 | 8 6 5 12 . 14 Fast Attach 22 | 7 9 . 2 . 4 Attach 14 | . 1 1 3 . 9 Detach 2 | . . . . . 2 Swap 23 | . 7 1 10 1 4 Drop 52 | . 8 . 19 . 25 Fire 163 | 12 51 17 30 4 49 Melee . | . . . . . . Ram . | . . . . . . Kick . | . . . . . . Crush . | . . . . . . Escape Stasis . | . . . . . . Rewire . | . . . . . . Trap 2 | . . . 2 . . Miscellaneous . | . . . . . . Route ------- -11/Scrapyard -10/Materials (discovered 6 exits: *Mat x3 / *Min x2 / Sub) -10/Mines (discovered 2 exits: *Mat x2) -9/Materials (discovered 2 exits: *Mat / [*Min]) -9/Mines -9/Exiles (discovered 1 exit: [*Min]) History --------- Turn | Location | Event 17 | -11/Scrapyard | Discovered new exit (range 16) 113 | -11/Scrapyard | Entered Materials 177 | -10/Materials | Discovered new exit (range 8) 245 | -10/Materials | Discovered new exit (range 10) 308 | -10/Materials | Build established: Mutant 417 | -10/Materials | Discovered new exit (range 8) 600 | -10/Materials | Discovered new exit (range 16) 660 | -10/Materials | Learned Storage terminal intel 696 | -10/Materials | Identified exit to Subcaves 696 | -10/Materials | Identified exit to Materials 696 | -10/Materials | Learned location of 1 exit from Materials 718 | -10/Materials | Core integrity fell below 50% 723 | -10/Materials | Learned Storage stockpile data 742 | -10/Materials | Learned 2 Mines zone layouts 772 | -10/Materials | Identified exit to Mines 811 | -10/Materials | Learned location of Recycling (-7) 893 | -10/Materials | Lost 3 parts (1u2w) 1070 | -10/Materials | Entered Mines 1238 | -10/Mines | Core integrity fell below 20% 1380 | -10/Mines | Discovered exit to Materials (range 15) 1419 | -10/Mines | Found a hidden stash of uninstalled traps 1499 | -10/Mines | Entered Materials 1499 | -9/Materials | Evolved 2 slots: Propulsion x1, Weapon x1 1500 | -9/Materials | Identified exit to Materials 2352 | -9/Materials | Build established: Scavenger-Gunner 2353 | -9/Materials | Discovered new exit (range 14) 2442 | -9/Materials | Entered Mines 2504 | -9/Mines | Deemed a non-threat by the Exiles lab entrance 2504 | -9/Mines | Discovered new exit (range 5) 2509 | -9/Mines | Entered Exiles 2550 | -9/Exiles | Met 8R-AWN 2576 | -9/Exiles | Met EX-HEX 2619 | -9/Exiles | Met EX-BIN 2641 | -9/Exiles | Aligned with FarCom system 2643 | -9/Exiles | Given EX-Vault access code 2680 | -9/Exiles | Opened EX-Vault 2693 | -9/Exiles | Found Latent Energy Streamer 2723 | -9/Exiles | Warned to stay clear of 0b10 Research branches 2768 | -9/Exiles | Met EX-DEC 3165 | -9/Exiles | Attacked by the Exiles 3215 | -9/Exiles | System corruption reached 10% 3222 | -9/Exiles | System corruption reached 30% 3265 | -9/Exiles | Core integrity fell below 50% 3332 | -9/Exiles | Core integrity fell below 20% 3415 | -9/Exiles | Discovered new exit (range 14) 3420 | -9/Exiles | Destroyed by 8R-AWN with 8R-AWN's Boregun Last Messages --------------- 03401_ Penetrated by HV Slug. 03401_ HV Slug penetrates Earth. 03403_ System corrupted: Hvy. Assault Rifle jammed. 03406_ Penetrated by HV Slug. 03406_ HV Slug penetrates Earth. 03406_ Penetrated by HV Slug. 03406_ HV Slug penetrates Earth. 03410_ Penetrated by HV Slug. 03410_ Critical hit (Destroy). 03410_ Hvy. Assault Rifle destroyed. 03410_ HV Slug penetrates Earth. 03411_ System corrupted: Heat flow error (+137). 03414_ HV Slug penetrates Wall. 03414_ HV Slug penetrates Machine. 03414_ Machine disabled. 03414_ HV Slug penetrates Machine. 03414_ Machine disabled. 03414_ HV Slug penetrates Wall. 03415_ EXIT=FOUND 03420_ Penetrated by HV Slug. Map ----- +----------------------------------------------------+ | | | ??????????????????????????????????????????? | | ??????????????????????????????????????????? | | ??????????????????????????????????????????? | | ??????????????????????????????????????????? | | ??????????????????????????????????????????? | | ??????????????????????????????????????????? | | ??????????????????????????????????????????? | | ??????????????????????????????????????????? | | ??????????????????????????????????????????? | | ??????????????????????????????????????????? | | ??????????????????????????????????????????? | | ??????????????????????????????????????????? | | ??????????????????????????????????????????? | | ??????????????????????????????????????????? | | ??????????????????????????????????????????? | | ??????????????????????????????????????????? | | ????????????????#####?????????????????????? | | ???????????????## ##????????????????????? | | ???????????????# #????????????????????? | | ???????????????# < #????????????????????? | | ???????????????# ###??????????????????? | | ???????????????# #??????????????????? | | ???????????????# #???????????????????? | | ????????????????# #???????????????????? | | ????????????????# @ ##??????????????????? | | ????????????????## #????????????####### | | ????????????????## #######??????#!!! "# | | ????????????????#; #" ##?????# "# | | ????????????????### #?????# "# | | ??????????????????## ##???## ""# | | ??????????????????#"" #####" ""# | | ??????????????????#### ## ""? | | ?????????????????????## # " #?? | | ??????????????????????#"## #?? | | ??????????????????????######; ##? | | ????????????????????????## ";" ## | | ???????????????????######""""" "" | | ???????????????????# " !! % ! | | ???????????????????####! = ] "##" | | ?????????????????????#"! #### % | | ?????????????????# "! "#??#" | | ?????????????????## # """#??#"# | | ?????????????????# ###"###""""""###??#### | | ?????????????????#???##? ## ##???????### | | ??????????????????????# #?# ##??????????# | | ????????????????????? #?? #???????????? | | ???????????????????# ###???###???????????? | | ??????????????????? ?????????????????????? | | ???????????????????#??????????????????????? | +----------------------------------------------------+ Best States ------------- Heat Dissipation 42 Energy Generation 12 Energy Capacity 265 Matter Stores 300 Matter Capacity 450 Sight Range 16 Terrain Scan Density 10 Evasion (%) 50 Recoil Reduction 3 Item Schematics ----------------- None Robot Schematics ------------------ None Fabricated ------------ Nothing Repaired ---------- Nothing Studied --------- Wheel | -9/Materials | Hacked Alien Tech Used ----------------- None Achievements -------------- None Challenges ------------ None Game ------ Seed AssembledCatalystMapper Manual? 0 Play Time 00:28:58 Cumulative 170.7 hours Start 2026.02.24 @ 22:14:58 End 2026.02.24 @ 22:45:34 Sessions 1 Manual Loads 0 Difficulty Rogue Special Mode None Game No. 88 Rogue 88 Adventurer 0 Explorer 0 Win Type - Total 7 Types 6/0/1/0/0/0/0/0/0/0 Lore% 68 Gallery% 65 Achievement% 62 Wizard Run 0 Options --------- Layout 0 ASCII 0 Keyboard 1 Movement Arrows Keybinds 0 Fullscreen 1 Font 18/SmallcapsGlow Map View 76x50 Zoom Use 0% Tactical HUD 1 Map Filters NONE Filters NONE Steam 1 RUN: aad60fbc-8a8e-4768-b04c-c11f2cf82273